bitfinex-derivatives/quotes_BTCF0:USTF0_20241116
["timestamp","ask_amount","ask_price","bid_price","bid_amount"]
[1731775476122,0.055186,90561.0,90560.0,0.11042402]
[1731775478524,0.09049293,90561.0,90560.0,0.12077567]
[1731775482725,0.09049293,90561.0,90560.0,0.11042402]
[1731775483529,0.09049293,90561.0,90560.0,0.12077556]
[1731775485537,0.09049293,90561.0,90552.0,0.3608]
[1731775485538,0.03530693,90561.0,90552.0,0.3608]
[1731775485730,0.13166698,90562.0,90553.0,0.0103526]
[1731775486035,0.05519,90554.0,90553.0,0.11042341]
[1731775486235,0.05519,90554.0,90553.0,0.12077654]
[1731775486632,0.05519,90554.0,90553.0,0.11042341]
[1731775487134,0.05519,90554.0,90553.0,0.12077635]
[1731775487440,0.14415,90554.0,90553.0,0.12077635]
[1731775487633,0.24927868,90554.0,90553.0,0.12077635]
[1731775487935,0.24927868,90554.0,90553.0,0.11042341]
[1731775489235,0.16031868,90554.0,90553.0,0.11042341]
[1731775489425,0.24923868,90554.0,90553.0,0.11042341]
[1731775491524,0.14411,90554.0,90553.0,0.11042341]
[1731775491730,0.24923868,90554.0,90553.0,0.11042341]
[1731775492031,0.16031868,90554.0,90553.0,0.11042341]
[1731775492222,0.05519,90554.0,90553.0,0.11042341]
[1731775492426,0.05519,90554.0,90553.0,0.3608]
[1731775492647,0.036321,90563.0,90553.0,0.3608]
[1731775492935,0.055184,90565.0,90562.0,0.3608]
[1731775493135,0.08892,90567.0,90563.0,0.01035256]
[1731775493136,0.055184,90564.0,90563.0,0.01035256]
[1731775493339,0.055185,90562.0,90556.0,0.055189]
[1731775493531,0.055185,90562.0,90557.0,0.01035235]
[1731775493727,0.055185,90562.0,90558.0,0.01035235]
[1731775493933,0.055185,90562.0,90559.0,0.01035235]
[1731775494133,0.055185,90562.0,90560.0,0.01035235]
[1731775494340,0.055185,90562.0,90561.0,0.37115235]
[1731775494643,0.10512868,90569.0,90561.0,0.3608]
[1731775494830,0.144102,90569.0,90562.0,0.01035161]
[1731775495137,0.055182,90569.0,90564.0,0.055184]
[1731775495336,0.055182,90569.0,90565.0,0.01035161]
[1731775495539,0.055182,90569.0,90564.0,0.055184]
[1731775496132,0.055182,90569.0,90565.0,0.12076894]
[1731775496327,0.08892,90573.0,90568.0,0.055182]
[1731775496534,0.144099,90573.0,90571.0,0.3608]
[1731775497037,0.055179,90573.0,90572.0,0.1104161]
[1731775497439,0.03640082,90574.0,90572.0,0.1655951]
[1731775497744,0.02208042,90581.0,90572.0,0.1655951]
[1731775497745,0.08892,90575.0,90572.0,0.1655951]
[1731775498344,0.055176,90577.0,90572.0,0.1655951]
[1731775498532,0.08892,90580.0,90576.0,0.055177]
[1731775498840,0.1415898,90585.0,90582.0,0.055173]
[1731775498841,0.03646112,90585.0,90582.0,0.055173]
[1731775499041,0.09057655,90592.0,90582.0,0.055173]
[1731775499732,0.09057655,90592.0,90583.0,0.11040208]
[1731775500327,0.05517,90588.0,90583.0,0.11040208]
[1731775501838,0.05517,90588.0,90584.0,0.01034862]
[1731775502039,0.05517,90588.0,90583.0,0.11040208]
[1731775502040,0.05517,90588.0,90585.0,0.01034862]
[1731775502436,0.05517,90588.0,90586.0,0.12074156]
[1731775502641,0.05517,90588.0,90587.0,0.01034862]
[1731775503239,0.05517,90588.0,90587.0,0.12074156]
[1731775504035,0.05517,90588.0,90587.0,0.11039294]
[1731775504436,0.055171,90586.0,90579.0,0.3608]
[1731775504640,0.055171,90586.0,90583.0,0.1103905]
[1731775504943,0.055171,90586.0,90579.0,0.415975]
[1731775505338,0.055171,90586.0,90580.0,0.11039416]
[1731775505538,0.055171,90586.0,90581.0,0.010349]
[1731775505839,0.055171,90586.0,90580.0,0.16556816]
[1731775505840,0.055169,90590.0,90583.0,0.055173]
[1731775506031,0.055169,90589.0,90583.0,0.055173]
[1731775506236,0.05517,90588.0,90583.0,0.055173]
[1731775506441,0.08888,90591.0,90583.0,0.055173]
[1731775506639,0.05517,90587.0,90583.0,0.055173]
[1731775506839,0.05517,90587.0,90584.0,0.11039538]
[1731775507634,0.05517,90587.0,90585.0,0.0103488]
[1731775507841,0.05517,90587.0,90584.0,0.11039538]
[1731775508036,0.05517,90587.0,90583.0,0.055173]
[1731775508241,0.05517,90587.0,90584.0,0.12074102]
[1731775508441,0.05517,90587.0,90584.0,0.11039233]
[1731775508744,0.05517,90587.0,90585.0,0.01034857]
[1731775508954,0.05517,90587.0,90584.0,0.11039233]
[1731775509134,0.05517,90587.0,90579.0,0.3608]
[1731775509135,0.08888,90591.0,90579.0,0.3608]
[1731775509336,0.055174,90581.0,90580.0,0.01034893]
[1731775509645,0.055174,90581.0,90580.0,0.11039233]
[1731775511739,0.055174,90581.0,90579.0,0.3608]
[1731775511740,0.386374,90581.0,90579.0,0.3608]
[1731775511946,0.08888,90580.0,90579.0,0.3608]
[1731775513040,0.08888,90580.0,90561.0,0.3608]
[1731775513249,0.055185,90564.0,90563.0,0.055185]
[1731775513443,0.055185,90564.0,90563.0,0.01035087]
[1731775513941,0.055185,90564.0,90563.0,0.12075112]
[1731775514145,0.055185,90564.0,90563.0,0.11040025]
[1731775514742,0.19400868,90569.0,90563.0,0.11040025]
[1731775514942,0.055182,90568.0,90563.0,0.16558425]
[1731775515247,0.19400868,90569.0,90563.0,0.11040025]
[1731775515443,0.055184,90565.0,90563.0,0.11040025]
[1731775516050,0.055184,90565.0,90564.0,0.01035143]
[1731775522359,0.05519,90555.0,90553.0,0.3608]
[1731775524361,0.08884,90554.0,90553.0,0.3608]
[1731775524865,0.08884,90554.0,90553.0,0.37115315]
[1731775525056,0.08884,90554.0,90548.0,0.055194]
[1731775525264,0.10512868,90551.0,90549.0,0.01035325]
[1731775525460,0.16032068,90551.0,90550.0,0.01035325]
[1731775525964,0.16032068,90551.0,90550.0,0.01035304]
[1731775526260,0.16032068,90551.0,90550.0,0.12078499]
[1731775528162,0.16032068,90551.0,90550.0,0.11043195]
[1731775528460,0.16032068,90551.0,90544.0,0.055196]
[1731775528671,0.16032068,90551.0,90545.0,0.01035308]
[1731775528966,0.16032068,90551.0,90546.0,0.01035308]
[1731775529154,0.19659859,90551.0,90547.0,0.01035308]
[1731775529355,0.19659859,90551.0,90548.0,0.01035308]
[1731775529558,0.19659859,90551.0,90549.0,0.01035308]
[1731775529774,0.19659859,90551.0,90548.0,0.11043866]
[1731775529775,0.19659859,90551.0,90550.0,0.01035308]
[1731775530173,0.19659859,90551.0,90550.0,0.12079174]
[1731775530460,0.09146991,90551.0,90550.0,0.48159174]
[1731775534154,0.19659859,90551.0,90550.0,0.48159174]
[1731775534361,0.19659859,90551.0,90550.0,0.3608]
[1731775534559,0.19659859,90551.0,90550.0,0.37115349]
[1731775534763,0.19659859,90551.0,90550.0,0.01035349]
[1731775535562,0.055197,90543.0,90542.0,0.3608]
[1731775535771,0.16032568,90543.0,90542.0,0.3608]
[1731775535956,0.24916568,90543.0,90542.0,0.3608]
[1731775540965,0.24916568,90543.0,90531.0,0.3608]
[1731775541266,0.16033168,90533.0,90532.0,6.458e-05]
[1731775541660,0.16033168,90533.0,90532.0,0.11050995]
[1731775543970,0.16033168,90533.0,90532.0,6.458e-05]
[1731775543971,0.26546036,90533.0,90532.0,6.458e-05]
[1731775544163,0.26546036,90533.0,90531.0,0.3608]
[1731775544164,0.16033168,90533.0,90531.0,0.33681014]
[1731775544360,0.08888,90532.0,90531.0,0.33681014]
[1731775546271,0.55480868,90532.0,90519.0,0.3608]
[1731775546471,0.10512868,90520.0,90519.0,0.3608]
[1731775546670,0.19400868,90520.0,90510.0,0.3608]
[1731775546973,0.10512868,90511.0,90510.0,0.3608]
[1731775547670,0.10512868,90517.0,90511.0,0.055217]
[1731775547873,0.14049748,90517.0,90511.0,0.055217]
[1731775548268,0.14049748,90517.0,90512.0,0.11048014]
[1731775548871,0.19571048,90517.0,90512.0,0.11048014]
[1731775549377,0.19571048,90517.0,90512.0,0.055216]
[1731775549378,0.14049748,90517.0,90512.0,0.055216]
[1731775549576,0.0353688,90517.0,90515.0,0.055214]
[1731775549780,0.0353688,90517.0,90510.0,0.3608]
[1731775549781,0.0888,90522.0,90510.0,0.3608]
[1731775550077,0.0888,90522.0,90518.0,0.3608]
[1731775550280,0.14401,90522.0,90518.0,0.3608]
[1731775550776,0.14401,90522.0,90519.0,0.1104777]
[1731775550978,0.00165757,90530.0,90528.0,0.055206]
[1731775551276,0.00165757,90530.0,90529.0,0.3608]
[1731775551679,0.00165757,90530.0,90529.0,0.47127221]
[1731775552268,0.00165757,90530.0,90529.0,0.11047221]
[1731775553080,0.00165757,90530.0,90518.0,0.3608]
[1731775553377,0.10512868,90519.0,90518.0,0.3608]
[1731775553970,0.10512868,90519.0,90518.0,0.47126123]
[1731775554370,0.10512868,90526.0,90518.0,0.47126123]
[1731775554570,0.055207,90528.0,90518.0,0.47126123]
[1731775554768,0.00165757,90530.0,90527.0,0.3608]
[1731775555292,0.00165757,90530.0,90528.0,0.055206]
[1731775555474,0.00165757,90530.0,90528.0,0.16566845]
[1731775558080,0.05686257,90530.0,90528.0,0.11046245]
[1731775560493,0.055206,90528.0,90527.0,0.3608]
[1731775562484,0.055212,90519.0,90518.0,0.3608]
[1731775562693,0.16034068,90519.0,90518.0,0.3608]
[1731775564694,0.16034068,90519.0,90508.0,0.055218]
[1731775564695,0.10512868,90519.0,90508.0,0.055218]
[1731775564994,0.055217,90510.0,90508.0,0.16569265]
[1731775565290,0.055217,90510.0,90508.0,0.055218]
[1731775565683,0.055217,90510.0,90509.0,0.11048075]
[1731775567085,0.055221,90504.0,90502.0,0.75468083]
[1731775567285,0.16034968,90504.0,90502.0,0.3608]
[1731775567787,0.16034968,90504.0,90503.0,0.11048563]
[1731775568794,0.19654955,90504.0,90503.0,0.11048563]
[1731775571287,0.19654955,90504.0,90502.0,0.3608]
[1731775571492,0.055223,90501.0,90495.0,0.39388083]
[1731775571683,0.055223,90501.0,90488.0,0.00165768]
[1731775573195,0.055223,90501.0,90488.0,0.05688868]
[1731775573396,0.055223,90501.0,90488.0,0.00165768]
[1731775576000,0.055223,90501.0,90477.0,0.3659]
[1731775576196,0.055233,90484.0,90478.0,0.055236]
[1731775576504,0.055233,90484.0,90479.0,0.055236]
[1731775576893,0.10512868,90486.0,90477.0,0.3608]
[1731775577191,0.10512868,90479.0,90465.0,0.055244]
[1731775577391,0.16036568,90479.0,90478.0,0.11049662]
[1731775577591,0.16036568,90479.0,90465.0,0.055244]
[1731775577592,0.055238,90477.0,90465.0,0.055244]
[1731775577795,0.10512868,90479.0,90465.0,0.055244]
[1731775577796,0.055239,90475.0,90465.0,0.055244]
[1731775578002,0.055239,90475.0,90474.0,0.11051983]
[1731775578203,0.055239,90475.0,90465.0,0.055244]
[1731775578405,0.055239,90475.0,90466.0,0.11052838]
[1731775578700,0.19396868,90479.0,90466.0,0.11052838]
[1731775578891,0.10512868,90471.0,90466.0,0.11052838]
[1731775579097,0.10512868,90471.0,90462.0,0.3608]
[1731775579098,0.16036968,90471.0,90462.0,0.3608]
[1731775579398,0.055241,90471.0,90463.0,0.11052838]
[1731775579702,0.10512868,90478.0,90470.0,0.3608]
[1731775579904,0.144076,90479.0,90470.0,0.3608]
[1731775579905,0.055236,90479.0,90470.0,0.3608]
[1731775580097,0.055236,90479.0,90478.0,0.3608]
[1731775580400,0.08876,90485.0,90478.0,0.3608]
[1731775580601,0.055234,90484.0,90478.0,0.3608]
[1731775580907,0.055235,90482.0,90479.0,0.11052838]
[1731775581207,0.03572537,90486.0,90479.0,0.11052838]
[1731775581392,0.3608,90513.0,90484.0,0.055233]
[1731775581393,0.055226,90496.0,90484.0,0.055233]
[1731775581592,0.08876,90495.0,90488.0,0.3608]
[1731775582001,0.055226,90496.0,90489.0,0.11052105]
[1731775582206,0.03798742,90498.0,90489.0,0.11052105]
[1731775582396,0.03798742,90498.0,90497.0,0.3608]
[1731775582893,0.00165813,90498.0,90497.0,0.3608]
[1731775583097,0.00165813,90498.0,90497.0,0.47130639]
[1731775583905,0.055213,90517.0,90497.0,0.80282639]
[1731775584095,0.08876,90521.0,90512.0,0.3608]
[1731775584295,0.02210355,90516.0,90512.0,0.3608]
[1731775584498,0.02210355,90516.0,90515.0,0.055214]
[1731775585294,0.08876,90525.0,90515.0,0.11048869]
[1731775585605,0.00165757,90530.0,90523.0,0.3608]
[1731775585790,0.00165757,90530.0,90528.0,0.055206]
[1731775586705,0.00165757,90530.0,90529.0,0.11046184]
[1731775588396,0.03634292,90537.0,90532.0,0.055204]
[1731775588600,0.03634292,90537.0,90534.0,0.3608]
[1731775588798,0.08876,90545.0,90534.0,0.416003]
[1731775588998,0.00165711,90556.0,90534.0,0.63159291]
[1731775589307,0.09041711,90556.0,90548.0,0.055194]
[1731775589509,0.09041711,90556.0,90552.0,0.3608]
[1731775589708,0.00165711,90556.0,90552.0,0.3608]
[1731775589894,0.00165711,90556.0,90555.0,0.05519]
[1731775590092,0.00165711,90556.0,90553.0,0.11045513]
[1731775590306,0.10512868,90555.0,90554.0,0.00014148]
[1731775590510,0.00165711,90556.0,90555.0,0.05519]
[1731775590691,0.00165711,90556.0,90555.0,0.38647]
[1731775591098,0.03545878,90568.0,90564.0,0.055184]
[1731775591396,0.10512868,90578.0,90567.0,0.7216]
[1731775591595,0.10512868,90578.0,90577.0,0.3608]
[1731775592294,0.03517126,90578.0,90577.0,0.47122951]
[1731775592497,0.00165635,90598.0,90577.0,0.47122951]
[1731775592498,0.02208997,90597.0,90582.0,0.055173]
[1731775592696,0.00165635,90598.0,90582.0,0.415973]
[1731775592909,0.00165635,90598.0,90592.0,0.055167]
[1731775593110,0.03752485,90598.0,90597.0,0.3608]
[1731775593606,0.09268885,90598.0,90597.0,0.3608]
[1731775594106,0.09268885,90598.0,90582.0,0.36091069]
[1731775594107,0.14265353,90598.0,90582.0,0.36091069]
[1731775594304,0.10512868,90587.0,90582.0,0.36091069]
[1731775594513,0.10512868,90587.0,90583.0,0.11037832]
[1731775595010,0.08872,90593.0,90583.0,0.11037832]
[1731775595310,0.03752485,90598.0,90591.0,0.3608]
[1731775595609,0.10512868,90596.0,90585.0,0.055171]
[1731775595798,0.10512868,90596.0,90592.0,0.3608]
[1731775596001,0.10512868,90596.0,90592.0,0.47118989]
[1731775596301,0.10512868,90596.0,90592.0,0.3608]
[1731775596501,0.16029368,90596.0,90593.0,0.11038258]
[1731775596709,0.055166,90595.0,90593.0,0.11038258]
[1731775597008,0.08872,90594.0,90582.0,0.00011069]
[1731775597209,0.10512868,90583.0,90582.0,0.00011069]
[1731775597600,0.10512868,90583.0,90582.0,0.11050058]
[1731775598506,0.10512868,90590.0,90582.0,0.11050058]
[1731775598717,0.10512868,90590.0,90584.0,0.055172]
[1731775600601,0.10512868,90590.0,90582.0,0.00011069]
[1731775602602,0.10512868,90590.0,90588.0,0.3608]
[1731775602801,0.10512868,90597.0,90588.0,0.415969]
[1731775602997,0.055163,90599.0,90596.0,0.3608]
[1731775603406,0.08868,90601.0,90596.0,0.3608]
[1731775603611,0.10512868,90597.0,90596.0,0.3608]
[1731775603810,0.10512868,90597.0,90585.0,0.11039111]
[1731775603811,0.055171,90587.0,90585.0,0.11039111]
[1731775606906,0.09158677,90587.0,90585.0,0.11039111]
[1731775608812,0.055172,90585.0,90582.0,0.00011069]
[1731775609111,0.055173,90584.0,90583.0,0.11039111]
[1731775609716,0.055173,90584.0,90582.0,0.00011069]
[1731775611718,0.055173,90584.0,90583.0,0.11039538]
[1731775612111,0.055174,90580.0,90579.0,0.3608]
[1731775612412,0.055176,90578.0,90561.0,0.3608]
[1731775612616,0.16031368,90562.0,90561.0,0.3608]
[1731775613218,0.16031368,90562.0,90561.0,0.36088409]
[1731775613513,0.16031368,90562.0,90561.0,0.47128434]
[1731775613714,0.16031368,90562.0,90561.0,8.409e-05]
[1731775614916,0.055193,90549.0,90548.0,0.00165657]
[1731775617907,0.09180366,90549.0,90548.0,0.00165657]
[1731775618913,0.18048366,90549.0,90548.0,0.00165657]
[1731775620115,0.12529066,90549.0,90539.0,0.3608]
[1731775620421,0.055197,90543.0,90540.0,0.11043805]
[1731775620623,0.055198,90542.0,90540.0,0.11043805]
[1731775621123,0.16032668,90542.0,90540.0,0.11043805]
[1731775621438,0.16032668,90542.0,90539.0,0.3608]
[1731775621439,0.055199,90540.0,90539.0,0.3608]
[1731775621724,0.10512868,90542.0,90528.0,0.3608]
[1731775621914,0.055203,90533.0,90528.0,0.3608]
[1731775622115,0.055203,90533.0,90529.0,0.1104472]
[1731775622321,0.055204,90531.0,90529.0,0.1104472]
[1731775623921,0.055206,90529.0,90528.0,0.3608]
[1731775626533,0.143886,90529.0,90528.0,0.3608]
[1731775627432,0.05521,90521.0,90518.0,0.3608]
[1731775628229,0.14393,90521.0,90518.0,0.3608]
[1731775628620,0.14393,90521.0,90503.0,0.3608]
[1731775628823,0.50473,90521.0,90503.0,0.3608]
[1731775629222,0.50473,90521.0,90504.0,0.055221]
[1731775629223,0.10512868,90506.0,90504.0,0.055221]
[1731775629525,0.10512868,90506.0,90504.0,0.16569321]
[1731775630031,0.055219,90508.0,90504.0,0.16569321]
[1731775630422,0.05522,90506.0,90504.0,0.11047221]
[1731775632029,0.055221,90504.0,90503.0,0.3608]
[1731775636334,0.03544243,90510.0,90503.0,0.47129296]
[1731775636335,0.09065943,90510.0,90503.0,0.47129296]
[1731775636525,0.08872,90509.0,90503.0,0.47129296]
[1731775637823,0.03524019,90512.0,90506.0,0.055219]
[1731775638029,0.08872,90515.0,90511.0,0.3608]
[1731775638329,0.08872,90515.0,90512.0,0.055216]
[1731775638530,0.08872,90515.0,90512.0,0.16570591]
[1731775638726,0.416768,90525.0,90516.0,0.055213]
[1731775638727,0.00076,90525.0,90516.0,0.055213]
[1731775638920,0.16033468,90529.0,90521.0,0.3608]
[1731775638921,0.08868,90524.0,90521.0,0.3608]
[1731775639228,0.10512868,90522.0,90521.0,0.3608]
[1731775639724,0.10512868,90529.0,90521.0,0.47127099]
[1731775639926,0.19380868,90529.0,90521.0,0.47127099]
[1731775640129,0.19380868,90529.0,90521.0,0.52648099]
[1731775640730,0.19380868,90529.0,90521.0,0.47127099]
[1731775640940,0.19380868,90529.0,90526.0,0.055207]
[1731775641237,0.10512868,90529.0,90526.0,0.055207]
[1731775641626,0.10512868,90529.0,90528.0,0.055206]
[1731775641831,0.10512868,90529.0,90527.0,0.11046672]
[1731775641832,0.00165734,90540.0,90527.0,0.11046672]
[1731775642035,0.00165734,90540.0,90539.0,0.055199]
[1731775642759,0.00165734,90540.0,90539.0,0.16564803]
[1731775643727,0.00013172,90546.0,90545.0,0.055196]
[1731775643728,0.03585181,90546.0,90545.0,0.055196]
[1731775644349,0.03585181,90546.0,90545.0,0.11044903]
[1731775652435,0.055199,90539.0,90538.0,0.3608]
[1731775652735,0.055199,90539.0,90524.0,0.3608]
[1731775652736,0.055206,90529.0,90524.0,0.3608]
[1731775652930,0.19380868,90528.0,90524.0,0.3608]
[1731775653137,0.19380868,90528.0,90525.0,0.11044171]
[1731775653544,0.08868,90528.0,90525.0,0.11044171]
[1731775654343,0.08868,90528.0,90525.0,0.16564971]
[1731775655237,0.17907111,90528.0,90525.0,0.11044171]
[1731775657447,0.03518411,90528.0,90526.0,0.055207]
[1731775657649,0.3608,90540.0,90525.0,0.11044171]
[1731775657834,0.3608,90540.0,90524.0,0.46592868]
[1731775657835,0.415999,90540.0,90533.0,0.416003]
[1731775658149,0.16033068,90535.0,90533.0,0.3608]
[1731775658645,0.16033068,90535.0,90534.0,0.11046489]
[1731775659355,0.16033068,90535.0,90533.0,0.3608]
[1731775659548,0.16033068,90535.0,90524.0,0.3608]
[1731775659549,0.055208,90525.0,90524.0,0.3608]
[1731775660139,0.055208,90525.0,90524.0,0.47125513]
[1731775661143,0.10512868,90527.0,90524.0,0.47125513]
[1731775661353,0.08868,90530.0,90528.0,0.055206]
[1731775661552,0.055205,90531.0,90528.0,0.055206]
[1731775661753,0.08868,90530.0,90528.0,0.055206]
[1731775662052,0.08868,90530.0,90529.0,0.11046611]
[1731775662350,0.08868,90530.0,90525.0,0.055208]
[1731775662744,0.08868,90530.0,90525.0,0.16566923]
[1731775662941,0.08868,90530.0,90525.0,0.055208]
[1731775663350,0.08868,90530.0,90526.0,0.11046123]
[1731775665453,0.0359179,90531.0,90526.0,0.11046123]
[1731775665654,0.08868,90537.0,90535.0,0.055202]
[1731775665953,0.08868,90537.0,90536.0,0.055201]
[1731775666150,0.055198,90542.0,90537.0,0.0552]
[1731775666455,0.0593547,90546.0,90541.0,0.3608]
[1731775666456,0.1471947,90546.0,90541.0,0.3608]
[1731775666953,0.1471947,90546.0,90542.0,0.01035385]
[1731775667257,0.055197,90544.0,90542.0,0.11044903]
[1731775667455,0.055197,90544.0,90543.0,0.01035398]
[1731775667755,0.03642343,90546.0,90543.0,0.01035398]
[1731775667954,0.03642343,90546.0,90544.0,0.01035398]
[1731775668257,0.03642343,90546.0,90545.0,0.01035398]
[1731775668656,0.03642343,90546.0,90545.0,0.11044476]
[1731775669051,0.03642343,90546.0,90541.0,0.3608]
[1731775669356,0.03642343,90546.0,90542.0,0.11044171]
[1731775669559,0.03642343,90546.0,90541.0,0.69052831]
[1731775669745,0.03642343,90546.0,90542.0,0.0103535]
[1731775669949,0.03642343,90546.0,90543.0,0.12079765]
[1731775670146,0.03642343,90546.0,90544.0,0.0655495]
[1731775670349,0.03642343,90546.0,90545.0,0.0103535]
[1731775670559,0.03642343,90546.0,90544.0,0.16564015]
[1731775670758,0.03642343,90546.0,90544.0,0.055196]
[1731775670944,0.03642343,90546.0,90545.0,0.11044232]
[1731775671444,0.055199,90540.0,90538.0,0.32972831]
[1731775671650,0.055201,90536.0,90535.0,0.32972831]
[1731775672044,0.055201,90536.0,90535.0,0.44017002]
[1731775672251,0.055198,90542.0,90535.0,0.11044171]
[1731775672454,0.055198,90542.0,90535.0,0.4404119]
[1731775672768,0.08864,90541.0,90536.0,0.01035415]
[1731775673067,0.08864,90541.0,90537.0,0.34032434]
[1731775673068,0.08864,90540.0,90537.0,0.34032434]
[1731775673252,0.08864,90540.0,90538.0,0.34032434]
[1731775673450,0.08864,90540.0,90539.0,0.01035415]
[1731775673761,0.08864,90540.0,90539.0,0.12080379]
[1731775675163,0.026517,90540.0,90539.0,0.12080379]
[1731775675657,0.026517,90540.0,90539.0,0.44027733]
[1731775675854,0.026517,90540.0,90539.0,0.11044964]
[1731775676453,0.081716,90540.0,90539.0,0.11044964]
[1731775676756,0.055202,90536.0,90533.0,0.3608]
[1731775676962,0.10512868,90537.0,90533.0,0.3608]
[1731775677161,0.16032968,90537.0,90534.0,0.11044903]
[1731775677372,0.055202,90535.0,90534.0,0.11044903]
[1731775677865,0.055202,90535.0,90533.0,0.3608]
[1731775677866,0.055203,90534.0,90533.0,0.3608]
[1731775678052,0.055203,90534.0,90533.0,0.69073153]
[1731775678252,0.055203,90534.0,90533.0,0.32995523]
[1731775678459,0.10512868,90537.0,90532.0,0.32995523]
[1731775678760,0.055207,90527.0,90526.0,0.39401861]
[1731775678958,0.055207,90527.0,90524.0,0.3608]
[1731775678959,0.055208,90525.0,90524.0,0.75481861]
[1731775679262,0.16033668,90525.0,90524.0,0.3608]
[1731775679563,0.16033668,90525.0,90524.0,0.47125635]
[1731775679752,0.055208,90525.0,90524.0,0.52646535]
[1731775680562,0.055208,90525.0,90524.0,0.47125635]
[1731775680760,0.19565905,90525.0,90524.0,0.11045635]
[1731775680963,0.055211,90520.0,90519.0,0.33173613]
[1731775681161,0.055211,90520.0,90519.0,0.00165708]
[1731775682455,0.143848,90525.0,90522.0,0.055209]
[1731775682655,0.055205,90531.0,90525.0,0.055207]
[1731775683063,0.055205,90531.0,90527.0,0.055207]
[1731775683458,0.03683666,90532.0,90528.0,0.055206]
[1731775683667,0.38289079,90538.0,90528.0,0.16567943]
[1731775683668,0.08864,90535.0,90528.0,0.16567943]
[1731775684054,0.08864,90535.0,90528.0,0.055206]
[1731775684256,0.08864,90535.0,90529.0,0.11046184]
[1731775684457,0.055203,90534.0,90529.0,0.16566684]
[1731775684753,0.03548885,90537.0,90532.0,0.33007905]
[1731775684754,0.09068985,90537.0,90532.0,0.33007905]
[1731775684959,0.055201,90537.0,90534.0,0.33007905]
[1731775685162,0.055201,90537.0,90533.0,0.33007905]
[1731775685467,0.055201,90537.0,90535.0,0.11045818]
[1731775685879,0.055201,90537.0,90534.0,0.33007905]
[1731775686063,0.055201,90537.0,90535.0,0.11045452]
[1731775686758,0.055201,90537.0,90534.0,0.33007905]
[1731775686957,0.03771762,90539.0,90535.0,0.1104533]
[1731775687157,0.03771762,90539.0,90535.0,0.44053235]
[1731775687460,0.03771762,90539.0,90536.0,0.33007905]
[1731775688269,0.03771762,90539.0,90535.0,0.055202]
[1731775688270,0.03771762,90539.0,90537.0,0.44053113]
[1731775688469,0.0016573,90539.0,90537.0,0.44053113]
[1731775688660,0.08864,90547.0,90537.0,0.39401861]
[1731775688861,0.03642156,90546.0,90545.0,0.69052597]
[1731775689167,0.03642156,90546.0,90545.0,0.415996]
[1731775689168,0.00013172,90546.0,90545.0,0.415996]
[1731775689472,0.00013172,90546.0,90545.0,0.85615044]
[1731775689670,0.00013172,90546.0,90545.0,0.52644686]
[1731775690057,0.00013172,90546.0,90545.0,0.92200922]
[1731775690460,0.00013172,90546.0,90545.0,0.52644686]
[1731775690665,0.00013172,90546.0,90545.0,0.84739522]
[1731775690868,0.00013172,90546.0,90545.0,0.84748973]
[1731775690869,2.2e-06,90546.0,90545.0,0.84748973]
[1731775691061,2.2e-06,90546.0,90545.0,1.24033798]
[1731775691463,2.2e-06,90546.0,90545.0,1.17880973]
[1731775691663,2.2e-06,90546.0,90545.0,1.2403207]
[1731775692565,2.2e-06,90546.0,90545.0,1.17880973]
[1731775693163,2.2e-06,90546.0,90545.0,1.24030412]
[1731775693861,2.2e-06,90546.0,90545.0,0.84748973]
[1731775694172,2.2e-06,90546.0,90545.0,0.47134537]
[1731775694669,2.2e-06,90546.0,90545.0,0.69006571]
[1731775694871,2.2e-06,90546.0,90545.0,0.36089451]
[1731775695170,2.2e-06,90546.0,90545.0,0.11053622]
[1731775697358,2.2e-06,90546.0,90545.0,0.47133622]
[1731775697566,2.2e-06,90546.0,90545.0,0.52653222]
[1731775699765,2.2e-06,90546.0,90545.0,0.85554878]
[1731775699966,2.2e-06,90546.0,90545.0,0.85552828]
[1731775700171,2.2e-06,90546.0,90545.0,0.52653222]
[1731775700370,2.2e-06,90546.0,90545.0,0.85547373]
[1731775700875,2.2e-06,90546.0,90545.0,0.52653222]
[1731775706875,2.2e-06,90546.0,90545.0,0.53688436]
[1731775707381,0.08856,90564.0,90546.0,0.055195]
[1731775707586,0.08856,90564.0,90561.0,0.3608]
[1731775707973,0.08856,90564.0,90562.0,0.12078171]
[1731775708177,0.055178,90574.0,90565.0,0.055183]
[1731775708482,0.08856,90572.0,90565.0,0.055183]
[1731775708675,0.08856,90572.0,90566.0,0.0103507]
[1731775708876,0.08856,90572.0,90566.0,0.11043012]
[1731775709276,0.14374,90572.0,90567.0,0.0103507]
[1731775709989,0.03828085,90568.0,90567.0,0.11041488]
[1731775710177,0.0016568,90568.0,90567.0,0.11041488]
[1731775710377,0.0568388,90568.0,90561.0,0.3608]
[1731775710675,0.0568388,90568.0,90562.0,0.12076605]
[1731775710871,0.0568388,90568.0,90563.0,0.01035117]
[1731775711083,0.0568388,90568.0,90564.0,0.01035117]
[1731775711275,0.0568388,90568.0,90565.0,0.01035117]
[1731775711475,0.0568388,90568.0,90566.0,0.01035117]
[1731775711696,0.0568388,90568.0,90567.0,0.01035117]
[1731775712185,0.0568388,90568.0,90567.0,0.1104161]
[1731775712575,0.0568388,90568.0,90561.0,0.3608]
[1731775712775,0.0568388,90568.0,90562.0,0.11041488]
[1731775713876,0.0016568,90568.0,90566.0,0.055182]
[1731775714079,0.0016568,90568.0,90567.0,0.01035108]
[1731775714476,0.0016568,90568.0,90567.0,0.12076901]
[1731775714676,0.0016568,90568.0,90567.0,0.44947982]
[1731775715072,0.0016568,90568.0,90567.0,0.12076901]
[1731775717792,0.03681095,90577.0,90571.0,0.05518]
[1731775717977,0.055176,90578.0,90575.0,0.3608]
[1731775718279,0.055177,90577.0,90576.0,0.01035108]
[1731775718484,0.24886568,90577.0,90576.0,0.01035108]
[1731775718682,0.055181,90569.0,90568.0,0.11041488]
[1731775718990,0.19368868,90577.0,90565.0,0.3608]
[1731775718991,0.08856,90577.0,90565.0,0.3608]
[1731775719193,0.143736,90577.0,90570.0,0.05518]
[1731775719377,0.055177,90576.0,90570.0,0.05518]
[1731775719991,0.1641022,90588.0,90570.0,0.05518]
[1731775719992,0.19692264,90607.0,90599.0,0.055163]
[1731775720190,0.00056001,90602.0,90599.0,0.52119767]
[1731775720380,0.03514753,90614.0,90606.0,0.055158]
[1731775720589,0.055149,90623.0,90599.0,0.46603467]
[1731775720590,0.055149,90623.0,90612.0,0.3608]